bitfinex-derivatives/quotes_SOLF0:USTF0_20251219
["timestamp","ask_amount","ask_price","bid_price","bid_amount"]
[1766184304576,0.05373844,126.91,126.88,0.05273059]
[1766184320687,17.29373844,126.91,126.88,0.05273059]
[1766184325089,17.29373844,126.91,126.88,0.00273059]
[1766184329388,17.29373844,126.91,126.85,0.00809195]
[1766184329594,21.18028116,126.89,126.81,12.2986891]
[1766184330493,17.52809295,126.86,126.81,1.8486891]
[1766184332697,17.52809295,126.86,126.79,10.47]
[1766184335692,17.52809295,126.86,126.8,10.65]
[1766184335893,0.05809295,126.86,126.81,3.71028116]
[1766184336092,0.05809295,126.86,126.81,14.39028116]
[1766184336292,0.05809295,126.86,126.82,10.68]
[1766184339710,0.05809295,126.86,126.82,17.7802]
[1766184340809,63.9,126.9,126.84,10.84]
[1766184341003,17.36,126.92,126.84,10.84]
[1766184341205,17.36,126.94,126.87,10.87]
[1766184341809,0.05292906,126.92,126.89,0.05914927]
[1766184349718,17.41292906,126.92,126.89,0.05914927]
[1766184350216,17.41292906,126.92,126.86,11.15]
[1766184355325,17.41292906,126.92,126.84,11.4]
[1766184355524,0.05516311,126.89,126.84,11.4]
[1766184358528,17.41516311,126.89,126.84,11.4]
[1766184365338,24.51206311,126.89,126.84,11.4]
[1766184367846,17.34,126.88,126.84,11.4]
[1766184368342,17.34,126.88,126.81,11.77]
[1766184368642,0.05257563,126.86,126.81,11.77]
[1766184381442,0.05257563,126.86,126.82,12.09]
[1766184381645,17.34,126.9,126.82,12.13994234]
[1766184381841,17.34,126.92,126.84,7.0992]
[1766184382045,17.34,126.92,126.85,12.06]
[1766184382445,17.34,126.92,126.86,12.06]
[1766184382642,0.05976144,126.9,126.88,0.05053189]
[1766184383146,17.34,126.94,126.88,0.05053189]
[1766184383346,17.34,126.94,126.87,12.06]
[1766184384053,0.05419879,126.92,126.89,0.05142365]
[1766184386449,17.34,126.91,126.89,0.00142365]
[1766184387246,0.05419879,126.92,126.89,0.00142365]
[1766184388146,19.07419879,126.92,126.89,0.00142365]
[1766184412167,19.07419879,126.92,126.83,16.35974162]
[1766184412168,18.93,126.91,126.83,12.65]
[1766184413070,156.9099,126.92,126.83,12.65]
[1766184413071,0.05631376,126.88,126.86,0.05263814]
[1766184413270,18.98631376,126.88,126.83,12.65]
[1766184418482,0.05631376,126.88,126.83,12.65]
[1766184418685,0.05631376,126.88,126.84,16.44974162]
[1766184427787,3.70974162,126.95,126.84,16.44974162]
[1766184427788,3.70974162,126.95,126.85,12.88]
[1766184427986,1.34999145,127.0,126.84,57.36894162]
[1766184427987,19.12,126.94,126.87,12.83]
[1766184428793,0.05691451,126.92,126.89,0.06046427]
[1766184429487,19.12,126.96,126.9,12.77]
[1766184430493,46.56,126.99,126.92,12.77763826]
[1766184430494,0.00486048,126.94,126.92,12.77763826]
[1766184430799,19.12,126.98,126.92,12.77763826]
[1766184431697,0.05553652,126.96,126.92,12.77763826]
[1766184444707,18.61553652,126.96,126.92,0.05763826]
[1766184445006,18.61553652,126.96,126.88,12.75]
[1766184445198,18.56,126.94,126.88,12.75]
[1766184445603,18.56,126.94,126.86,12.81]
[1766184446105,0.05293277,126.91,126.89,0.05951924]
[1766184448105,18.56,126.95,126.89,12.87951924]
[1766184448314,18.56,126.95,126.9,12.82]
[1766184448807,110.285,127.02,126.89,7.15581924]
[1766184448808,18.56,126.98,126.91,19.9152]
[1766184449006,18.56,126.98,126.92,12.82]
[1766184449223,0.00168905,126.95,126.92,12.87269195]
[1766184451814,18.56,126.98,126.92,12.87269195]
[1766184452317,18.56,126.98,126.92,0.05269195]
[1766184452616,22.26795203,126.98,126.92,0.05269195]
[1766184452825,18.61256409,126.96,126.92,0.05269195]
[1766184455410,18.61256409,126.96,126.92,0.00269195]
[1766184456298,25.70556409,126.96,126.92,0.00269195]
[1766184456500,17.53,126.95,126.92,0.00269195]
[1766184458013,24.6235,126.95,126.92,0.00269195]
[1766184458218,17.53,126.94,126.92,0.00269195]
[1766184458610,17.53,126.94,126.85,23.63665203]
[1766184459811,0.05455678,126.91,126.88,0.05222161]
[1766184462614,17.58455678,126.91,126.88,0.05222161]
[1766184462815,17.58455678,126.91,126.85,12.83]
[1766184463719,17.58455678,126.91,126.87,0.05441074]
[1766184467323,17.58455678,126.91,126.87,0.00441074]
[1766184467620,17.58455678,126.91,126.83,12.89]
[1766184467819,17.53,126.9,126.81,22.75035745]
[1766184468017,17.53,126.89,126.8,9.81035745]
[1766184468209,17.53,126.87,126.79,12.94]
[1766184468407,17.58079229,126.84,126.82,0.00226143]
[1766184470215,17.58079229,126.84,126.77,11.18248899]
[1766184470413,17.58079229,126.84,126.77,1.37213154]
[1766184471223,17.58079229,126.84,126.76,12.99]
[1766184471425,0.05645243,126.81,126.76,12.99]
[1766184476017,17.53,126.82,126.77,0.04983219]
[1766184476418,46.54,126.86,126.78,5.79896646]
[1766184477026,0.05179973,126.83,126.78,5.79896646]
[1766184477825,46.54,126.86,126.78,5.79896646]
[1766184478027,7.0968,126.89,126.8,5.79896646]
[1766184478223,46.56,126.9,126.82,5.79896646]
[1766184478427,17.53,126.89,126.82,5.79896646]
[1766184478731,17.5867624,126.87,126.84,0.05759615]
[1766184478940,46.56,126.9,126.84,0.05759615]
[1766184479919,0.05153353,126.88,126.84,0.05759615]
[1766184480526,46.56,126.9,126.84,0.05759615]
[1766184481129,17.53,126.89,126.84,0.05759615]
[1766184481527,17.53,126.89,126.82,5.79896646]
[1766184482524,17.53,126.86,126.84,0.05168928]
[1766184482730,17.53,126.86,126.84,0.00168928]
[1766184487732,17.78,126.85,126.84,0.00168928]
[1766184488230,46.56,126.86,126.84,0.00168928]
[1766184488427,110.3563,126.94,126.84,5.80065574]
[1766184488633,156.9297,126.92,126.84,5.79896646]
[1766184489536,7.0958,126.91,126.84,5.79896646]
[1766184489739,0.05136412,126.89,126.86,0.0567243]
[1766184489941,7.0958,126.91,126.86,0.0567243]
[1766184490233,17.2758,126.91,126.86,0.0567243]
[1766184490828,17.2758,126.91,126.86,5.85569076]
[1766184490829,0.05157423,126.9,126.86,5.85569076]
[1766184491032,10.18,126.91,126.86,5.85569076]
[1766184492029,7.0946,126.93,126.86,5.85569076]
[1766184492240,7.0946,126.93,126.86,24.48569076]
[1766184492829,7.0946,126.93,126.87,18.63]
[1766184493035,117.4413,126.95,126.89,5.85410335]
[1766184493233,7.0935,126.95,126.89,5.85410335]
[1766184494042,0.0597988,126.93,126.89,5.85410335]
[1766184494253,7.0935,126.95,126.89,5.85410335]
[1766184495462,0.05702967,126.93,126.89,5.85410335]
[1766184495650,7.0935,126.95,126.89,5.85410335]
[1766184496345,117.4344,126.95,126.89,3.35e-06]
[1766184496550,117.4344,126.95,126.89,5.79896646]
[1766184496750,7.0941,126.94,126.89,6.646e-05]
[1766184497556,0.05596196,126.93,126.9,0.05095955]
[1766184497855,7.0941,126.94,126.9,0.05095955]
[1766184498752,0.05676983,126.93,126.9,0.05095955]
[1766184503562,7.15156983,126.93,126.88,11.66729247]
[1766184503762,7.15156983,126.93,126.88,9.247e-05]
[1766184504553,7.15156983,126.93,126.89,0.05940847]
[1766184505551,21.54156983,126.93,126.89,0.05940847]
[1766184508266,14.44676983,126.93,126.89,0.05940847]
[1766184524671,0.05676983,126.93,126.89,13.78940847]
[1766184529476,0.05676983,126.93,126.89,17.49770368]
[1766184540981,0.05676983,126.93,126.89,4.58760368]
[1766184541186,0.05676983,126.93,126.89,3.68e-06]
[1766184541586,7.15136983,126.93,126.89,3.68e-06]
[1766184542177,7.15136983,126.93,126.9,0.05399344]
[1766184542885,7.0952,126.92,126.9,0.05399344]
[1766184543190,21.2852,126.92,126.88,9.521e-05]
[1766184543690,7.0957,126.91,126.87,3.1768339]
[1766184543895,7.0957,126.91,126.87,9.521e-05]
[1766184544190,0.05282982,126.9,126.88,0.051174]
[1766184544989,7.0957,126.91,126.88,0.051174]
[1766184546094,7.1465852,126.91,126.88,0.051174]
[1766184546296,0.0508852,126.91,126.88,0.051174]
[1766184547995,14.19,126.92,126.88,0.051174]
[1766184548993,0.06047457,126.91,126.88,0.051174]
[1766184549198,14.19,126.92,126.88,0.051174]
[1766184550297,0.05229713,126.91,126.89,3.70829521]
[1766184550500,14.19,126.92,126.89,3.70829521]
[1766184551599,14.2453524,126.92,126.89,3.70829521]
[1766184552298,14.2453524,126.92,126.88,0.051174]
[1766184560391,11.48,126.91,126.88,0.051174]
[1766184562397,11.48,126.9,126.87,6.921e-05]
[1766184563105,0.0553524,126.92,126.87,6.921e-05]
[1766184563405,0.0553524,126.92,126.89,3.70829521]
[1766184563599,7.0947,126.93,126.89,3.70829521]
[1766184563902,163.9766,126.95,126.89,3.70829521]
[1766184564603,0.0505625,126.93,126.91,0.0034154]
[1766184565005,11.5305625,126.93,126.91,0.0034154]
[1766184572600,114.01829521,126.99,126.91,3.71171061]
[1766184572601,7.093,126.96,126.91,3.71171061]
[1766184573607,0.05519357,126.95,126.91,3.71171061]
[1766184574707,8.32519357,126.95,126.91,3.71171061]
[1766184575611,8.32519357,126.95,126.91,0.0034154]
[1766184576299,15.41879357,126.95,126.91,0.0034154]
[1766184578213,0.05519357,126.95,126.92,14.40816012]
[1766184578510,0.05519357,126.95,126.92,2.024e-05]
[1766184585114,0.05519357,126.95,126.91,10.7034154]
[1766184585314,0.05519357,126.95,126.92,14.40816012]
[1766184587120,7.98,126.97,126.92,14.40816012]
[1766184588217,0.05180839,126.96,126.92,14.40816012]
[1766184588916,10.75,126.99,126.94,3.70816012]
[1766184589511,10.75,126.99,126.93,16.4897111]
[1766184589710,10.75,126.99,126.94,10.7]
[1766184589912,0.05717979,126.98,126.95,0.05971466]
[1766184590119,10.75,126.99,126.95,0.05971466]
[1766184591119,0.05778713,126.98,126.95,0.05971466]
[1766184607935,10.75,126.99,126.95,0.05971466]
[1766184608340,156.8029,127.04,126.95,0.05971466]
[1766184608638,156.8029,127.04,126.94,16.4897111]
[1766184609030,0.05915038,127.0,126.98,0.00349196]
[1766184610329,6.96915038,127.0,126.98,0.00349196]
[1766184611836,7.0895,127.02,126.98,0.00349196]
[1766184612840,0.05,127.01,126.98,0.00349196]
[1766184613936,7.0895,127.02,126.98,0.00349196]
[1766184614134,7.0887,127.04,126.98,0.00349196]
[1766184614527,1.33972282,127.06,126.98,10.27349196]
[1766184614735,1.33972282,127.06,127.0,5.7897111]
[1766184615638,8.42722282,127.06,127.0,5.7897111]
[1766184616040,0.05524669,127.04,127.02,0.05879697]
[1766184616238,8.42722282,127.06,127.02,0.05879697]
[1766184616438,8.42722282,127.06,127.0,5.7897111]
[1766184617039,7.0879,127.05,127.0,5.7897111]
[1766184617440,0.05879697,127.04,127.01,0.05376055]
[1766184617744,7.0879,127.05,127.01,0.05376055]
[1766184629946,8.86,127.15,127.04,9.47]
[1766184630156,9.94462229,127.11,127.06,1.11e-05]
[1766184630443,110.1865,127.13,127.06,1.11e-05]
[1766184630647,7.0839,127.12,127.06,1.11e-05]
[1766184630843,110.174,127.15,127.06,1.11e-05]
[1766184631044,110.174,127.15,127.06,9.4700111]
[1766184631238,110.174,127.15,127.09,5.7897111]
[1766184631637,46.5,127.16,127.11,0.05529997]
[1766184632242,7.083,127.14,127.11,0.05529997]
[1766184632439,46.5,127.16,127.11,0.05529997]
[1766184633353,7.083,127.14,127.11,0.05529997]
[1766184634149,53.5818,127.16,127.11,0.05529997]
[1766184634349,46.5,127.16,127.11,0.05529997]
[1766184637955,0.04,127.15,127.11,0.05529997]
[1766184639254,7.2207,127.18,127.11,9.25529997]
[1766184640548,0.23,127.17,127.11,9.25529997]
[1766184645252,0.23,127.17,127.11,0.05529997]
[1766184646055,0.76,127.12,127.05,9.2]
[1766184646951,0.05504292,127.1,127.07,0.05568291]
[1766184656385,0.05504292,127.1,127.07,9.25568291]
[1766184656971,3.699771,127.12,127.07,9.25568291]
[1766184662085,5.749771,127.12,127.07,9.25568291]
[1766184663283,3.699771,127.12,127.07,9.25568291]
[1766184667078,7.0836,127.13,127.07,9.25568291]
[1766184667379,3.699771,127.14,127.07,9.25568291]
[1766184670674,7.0823,127.15,127.07,9.25568291]
[1766184670878,7.0823,127.15,127.1,10.74103422]
[1766184672287,52.639771,127.16,127.1,10.74103422]
[1766184674789,3.699771,127.14,127.1,0.05103422]
[1766184681599,7.019771,127.14,127.1,0.05103422]
[1766184681897,7.019771,127.12,127.06,10.69]
[1766184682997,0.05126936,127.1,127.08,0.05485599]
[1766184686096,0.00126936,127.1,127.08,10.80485599]
[1766184690104,0.00126936,127.1,127.08,0.05485599]
[1766184704217,3.699771,127.14,127.08,11.68485599]
[1766184704614,11.6625,127.15,127.08,11.68485599]
[1766184705204,7.0829,127.14,127.08,11.68485599]
[1766184705410,4.62,127.13,127.08,11.68485599]
[1766184705606,17.96942098,127.12,127.05,46.48]
[1766184705918,21.66919198,127.12,127.05,46.48]
[1766184706513,21.66919198,127.12,127.07,0.05957447]
[1766184709018,7.0846,127.11,127.07,0.05957447]
[1766184709514,7.0856,127.09,127.01,14.66304204]
[1766184709714,10.83,127.09,127.0,14.66304204]
[1766184709918,10.83,127.09,126.99,64.86281304]
[1766184710222,10.83,127.09,126.99,61.16304204]
[1766184710426,0.05922844,127.05,127.03,0.05434237]
[1766184711618,7.14722844,127.05,126.99,46.5]
[1766184712524,7.14722844,127.05,127.01,0.05442049]
[1766184714324,0.05922844,127.05,127.01,0.05442049]
[1766184715716,10.88922844,127.05,127.01,0.05442049]
[1766184715918,10.88922844,127.05,126.99,56.05]
[1766184716826,10.88922844,127.05,127.01,0.05550727]
[1766184718534,10.88922844,127.05,126.99,0.02]
[1766184719537,10.88922844,127.05,127.01,0.0501458]
[1766184720035,10.88922844,127.05,127.01,0.0001458]
[1766184722036,10.83,127.04,127.01,0.0001458]
[1766184722237,10.83,127.04,126.95,8.76]
[1766184722437,10.83,127.02,126.95,8.76]
[1766184723232,0.05538871,127.0,126.97,0.05910038]
[1766184727237,0.05538871,127.0,126.97,8.24910038]
[1766184731151,10.76,127.03,126.97,8.24910038]
[1766184731340,57.26,127.04,126.97,8.24910038]
[1766184731748,10.76,127.04,126.98,7.78]
[1766184732238,0.0507997,127.02,127.0,0.05420034]
[1766184733250,0.0007997,127.02,127.0,0.05420034]
[1766184742857,0.0007997,127.02,127.0,6.81420034]
[1766184743562,0.0007997,127.02,127.0,0.05420034]
[1766184743761,0.0007997,127.02,126.96,6.63]
[1766184744064,10.4107997,127.02,126.96,6.63]
[1766184744766,10.4107997,127.02,126.98,0.0535993]
[1766184748464,10.41,127.01,126.95,46.5]
[1766184748870,10.41,127.01,126.94,6.28]
[1766184749164,10.41,127.0,126.94,6.28]
[1766184749577,0.06007681,126.98,126.96,0.05705175]
[1766184750767,10.47007681,126.98,126.92,6.19]
[1766184751772,10.47007681,126.98,126.94,0.05306999]
[1766184752882,0.06007681,126.98,126.94,0.05306999]
[1766184754371,0.06007681,126.98,126.94,5.91306999]
[1766184756578,9.82007681,126.98,126.94,0.05306999]
[1766184759485,0.06007681,126.98,126.94,5.60306999]
[1766184760686,9.76,127.03,126.95,5.43]
[1766184760887,53.6079,127.05,126.96,5.43]
[1766184760888,9.76,127.05,126.96,5.43]
[1766184761475,9.76,127.05,126.98,5.37]
[1766184761689,0.05452789,127.03,127.0,0.05920584]
[1766184770586,9.81452789,127.03,127.0,0.05920584]
[1766184772388,9.81452789,127.03,126.98,5.37]
[1766184772787,9.81452789,127.03,126.96,4.76]
[1766184772987,9.76,127.03,126.96,4.76]
[1766184773499,0.05775057,127.01,126.98,0.06063017]
[1766184774191,13.52326602,127.01,126.98,0.00063017]
[1766184777500,9.81775057,127.01,126.98,0.00063017]
[1766184777895,0.05775057,127.01,126.98,0.00063017]
[1766184799116,8.96775057,127.01,126.95,3.57]
[1766184800213,8.96775057,127.01,126.97,0.05846433]
[1766184809421,8.96775057,127.01,126.93,3.19]
[1766184809623,8.91,127.01,126.93,3.19]
[1766184810128,8.91,127.01,126.94,10.3037]
[1766184810533,0.05140038,126.99,126.96,0.0512781]
[1766184812038,9.16140038,126.99,126.96,0.0512781]
[1766184817149,9.16140038,126.99,126.92,7.0946]
[1766184818247,9.16140038,126.99,126.94,0.05734144]
[1766184820551,9.16140038,126.99,126.92,7.0946]
[1766184821343,8.34,126.98,126.91,71.31593193]
[1766184821747,8.34,126.95,126.93,0.00356506]
[1766184829257,0.05370793,126.96,126.93,0.00356506]
[1766184829258,8.39370793,126.96,126.93,0.00356506]
[1766184832659,0.05370793,126.96,126.93,0.00356506]
[1766184832860,0.05370793,126.96,126.93,8.82356506]
[1766184837267,0.05370793,126.96,126.93,0.00356506]
[1766184841060,0.05370793,126.96,126.93,8.82356506]
[1766184846970,0.05370793,126.96,126.93,15.91776506]
[1766184853874,0.05370793,126.96,126.93,8.82356506]
[1766184854175,0.05370793,126.96,126.93,0.00356506]
[1766184854366,7.93370793,126.96,126.93,0.00356506]
[1766184902711,0.05370793,126.96,126.93,0.00356506]
[1766184913824,0.05370793,126.96,126.93,9.84688664]
[1766184914823,0.05370793,126.96,126.93,16.48688664]
[1766184916220,18.04603638,126.99,126.94,6.6]
[1766184916420,14.0012,126.99,126.94,6.6]
[1766184917327,0.05710437,126.98,126.94,6.6]
[1766184921929,6.79710437,126.98,126.92,8.56839795]
[1766184922133,6.79710437,126.98,126.9,23.12035555]
[1766184922134,10.78483638,126.97,126.9,23.12035555]
[1766184922433,13.8328,126.96,126.89,1.37091532]
[1766184923133,0.0602488,126.94,126.91,0.05694423]
[1766184938748,6.8102488,126.94,126.91,0.05694423]
[1766184951964,6.8102488,126.94,126.92,9.84094736]
[1766184961971,6.8102488,126.94,126.91,0.05694423]
[1766184961972,6.8102488,126.94,126.91,0.05789159]
[1766184962159,6.8102488,126.94,126.91,0.05694423]
[1766184966865,6.8102488,126.94,126.89,7.0964]
[1766184967760,6.8102488,126.94,126.9,0.05348917]
[1766184970169,6.8102488,126.94,126.9,0.00348917]
[1766184992496,53.3502488,126.94,126.9,0.00348917]
[1766184992694,5.89,126.93,126.9,0.00348917]
[1766185029932,5.81,126.92,126.86,5.71]
[1766185030624,0.05487215,126.9,126.88,0.05824593]
[1766185034218,0.05487215,126.9,126.84,29.21988906]
[1766185034219,5.86487215,126.9,126.84,29.21988906]
[1766185043846,5.86487215,126.9,126.84,36.31908906]
[1766185049545,0.05487215,126.9,126.85,5.88]
[1766185049738,5.61,126.93,126.86,5.88]
[1766185049945,5.61,126.93,126.87,5.88]
[1766185050740,0.05368501,126.91,126.89,0.05487215]
[1766185050941,5.61,126.95,126.89,13.03127215]
[1766185051253,5.61,126.95,126.89,12.9764]
[1766185052055,5.61,126.95,126.91,0.05043057]
[1766185052056,0.05446275,126.93,126.91,0.05043057]
[1766185057955,5.49446275,126.93,126.91,0.00043057]
[1766185058840,9.54089541,126.93,126.87,12.6474]
[1766185059348,5.44,126.92,126.87,5.55]
[1766185059749,5.44,126.92,126.88,0.05647317]
[1766185066055,5.44,126.91,126.88,0.05647317]
[1766185066457,5.44,126.9,126.84,29.05988906]
[1766185066658,5.44,126.9,126.84,5.55]
[1766185067250,12.5364,126.9,126.84,5.55]
[1766185067450,0.05358413,126.88,126.84,5.55]
[1766185069560,0.05358413,126.88,126.84,29.42896853]
[1766185070063,0.05358413,126.88,126.84,5.55]
[1766185073666,0.05358413,126.88,126.84,29.45499337]
[1766185079462,0.05358413,126.88,126.84,5.55]
[1766185082170,0.05358413,126.88,126.84,28.82326016]
[1766185082469,0.05358413,126.88,126.84,5.55]
[1766185083369,5.49358413,126.88,126.84,5.55]
[1766185088173,0.05358413,126.88,126.84,5.55]
[1766185128515,0.00358413,126.88,126.84,5.55]
[1766185128818,46.56,126.93,126.84,5.55]
[1766185129407,46.56,126.93,126.86,5.92]
[1766185129816,46.56,126.93,126.89,5.92]
[1766185130113,5.4,126.92,126.88,0.05523755]
[1766185130816,0.06051379,126.91,126.88,0.05523755]
[1766185132111,5.46051379,126.91,126.88,0.05523755]
[1766185132420,5.46051379,126.91,126.83,5.92]
[1766185132619,5.4,126.91,126.83,5.92]
[1766185133318,5.4,126.9,126.83,5.92]
[1766185133619,0.05807139,126.88,126.85,0.05382921]
[1766185136723,0.05807139,126.88,126.85,5.97382921]
[1766185137220,5.4,126.91,126.85,5.97382921]
[1766185137620,59.0553,126.93,126.85,5.97382921]
[1766185137821,59.0553,126.93,126.85,5.92]
[1766185138325,0.05423465,126.9,126.88,5.97855931]
[1766185139920,0.05423465,126.9,126.88,0.05855931]
[1766185145627,0.05423465,126.9,126.84,15.56214377]
[1766185145628,9.69858124,126.89,126.84,15.56214377]
[1766185145823,5.65,126.88,126.83,9.82214377]
[1766185146023,5.65,126.88,126.83,5.74]
[1766185146224,9.69858124,126.87,126.82,9.82214377]
[1766185146428,4.04858124,126.87,126.83,5.74]
[1766185146732,4.04858124,126.87,126.84,0.05186625]
[1766185146733,0.05288518,126.86,126.84,0.05186625]
[1766185151732,9.69858124,126.9,126.84,5.79186625]
[1766185151936,46.56,126.91,126.84,5.79186625]
[1766185152936,0.05088279,126.89,126.84,5.79186625]
[1766185156735,0.05088279,126.89,126.84,15.61401002]
[1766185157237,0.05088279,126.89,126.85,5.74]
[1766185162628,0.05088279,126.89,126.84,0.05186625]
[1766185163541,7.14838279,126.89,126.84,0.05186625]
[1766185164636,7.14838279,126.89,126.84,6.625e-05]
[1766185164637,7.0981,126.88,126.84,6.625e-05]
[1766185164843,12.4581,126.88,126.82,9.82214377]
[1766185165338,16.50668124,126.88,126.82,9.82214377]
[1766185165534,16.50668124,126.88,126.81,9.82214377]
[1766185165735,0.05444403,126.86,126.83,0.05455484]
[1766185170541,5.41444403,126.86,126.83,0.05455484]
[1766185180150,5.41444403,126.86,126.83,0.00455484]
[1766185180342,5.41444403,126.86,126.78,8.87436496]
[1766185180343,5.82,126.85,126.78,11.59340873]
[1766185181243,5.82,126.85,126.78,35.03863234]
[1766185181552,5.82,126.85,126.78,8.87496496]
[1766185181553,0.0527215,126.83,126.78,8.87496496]
[1766185182255,0.0527215,126.83,126.78,1.77126496]
[1766185182449,9.86858124,126.87,126.78,112.27816496]
[1766185183565,0.05116619,126.84,126.81,0.05540049]
[1766185200090,5.87116619,126.84,126.81,0.05540049]
[1766185200383,5.82,126.83,126.78,7.1038]
[1766185200890,5.82,126.83,126.76,55.05738564]
[1766185201284,0.06064863,126.81,126.76,55.05738564]
[1766185201992,5.88064863,126.81,126.75,9.82214377]
[1766185202189,5.88064863,126.81,126.73,9.82214377]
[1766185202389,0.05782604,126.78,126.72,134.2954203]
[1766185202580,0.05782604,126.78,126.73,110.5526]
[1766185202780,5.82,126.81,126.74,110.541]
[1766185202989,5.82,126.83,126.75,110.5362]
[1766185203984,0.05465313,126.8,126.78,0.0581364]
[1766185225112,5.59,126.83,126.78,0.0581364]
[1766185226011,0.05681609,126.82,126.78,0.0581364]
[1766185230314,5.32681609,126.82,126.78,0.0581364]
[1766185237412,5.32681609,126.82,126.74,16.92834377]
[1766185237619,5.27,126.82,126.74,16.92834377]
[1766185237816,5.7,126.8,126.73,9.82214377]
[1766185238015,5.7,126.79,126.71,9.82214377]
[1766185238410,6.33571929,126.8,126.69,16.03593142]
[1766185238411,5.7568747,126.76,126.74,0.00183315]
[1766185239914,5.7568747,126.76,126.69,23.14198483]
[1766185240118,5.7568747,126.76,126.68,1.60444046]
[1766185240417,5.7,126.76,126.68,1.60444046]
[1766185240918,5.75718168,126.73,126.68,1.60444046]
[1766185241518,5.75718168,126.73,126.67,53.6901]
[1766185242122,5.75718168,126.73,126.69,7.1092]
[1766185242123,0.05718168,126.73,126.69,7.1092]
[1766185261437,0.05718168,126.73,126.67,53.73]
[1766185264644,0.05718168,126.73,126.68,7.1096]
[1766185274647,5.77718168,126.73,126.68,7.1096]
[1766185275948,5.77718168,126.73,126.67,46.62]
[1766185278042,5.77718168,126.73,126.68,7.1097]
[1766185280643,5.77718168,126.73,126.67,46.62]
[1766185281354,5.77718168,126.73,126.66,40.82427948]
[1766185281355,5.77718168,126.73,126.66,31.00213571]
[1766185281945,5.77718168,126.73,126.65,1.37337701]
[1766185282245,0.05389466,126.7,126.65,1.37337701]
[1766185282448,0.05389466,126.7,126.64,53.7317]
[1766185283150,5.56389466,126.7,126.64,46.62]
[1766185283354,5.51,126.69,126.62,9.82214377]
[1766185283556,5.56011978,126.67,126.61,1.4584195]
[1766185290557,5.56011978,126.67,126.59,8.48862772]
[1766185290765,0.05640891,126.64,126.59,8.48862772]
[1766185294155,0.05640891,126.64,126.59,1.37402772]
[1766185294356,0.05640891,126.64,126.58,70.7164157]
[1766185294941,0.05640891,126.64,126.58,24.0964157]
[1766185295143,0.05640891,126.64,126.57,165.8171533]
[1766185295957,0.05640891,126.64,126.58,7.1152]
[1766185297447,0.05640891,126.64,126.57,48.0143533]
[1766185298754,0.05640891,126.64,126.57,1.3743533]
[1766185299761,0.05640891,126.64,126.57,24.76599112]
[1766185300059,0.05640891,126.64,126.57,31.88109112]
[1766185314375,0.05640891,126.64,126.58,7.1146]
[1766185323292,0.05640891,126.64,126.58,16.93674377]
[1766185325286,0.05640891,126.64,126.59,9.82214377]
[1766185328189,0.05640891,126.64,126.6,9.82214377]
[1766185332192,5.45640891,126.64,126.6,9.82214377]
[1766185336790,5.45640891,126.64,126.59,9.82214377]
[1766185343601,5.45640891,126.64,126.6,9.82214377]
[1766185348100,5.45640891,126.64,126.59,9.82214377]
[1766185354506,5.45640891,126.64,126.6,9.82214377]
[1766185361312,0.05640891,126.64,126.59,9.82214377]
[1766185364720,0.05640891,126.64,126.58,7.1144]
[1766185364721,0.05640891,126.64,126.6,9.82214377]
[1766185366023,0.05640891,126.64,126.59,9.82214377]
[1766185366324,0.05640891,126.64,126.6,9.82214377]
[1766185369325,0.05640891,126.64,126.59,9.82214377]
[1766185369527,0.05640891,126.64,126.6,9.82214377]
[1766185371226,0.05640891,126.64,126.61,9.82214377]
[1766185373631,5.41,126.67,126.63,9.82214377]
[1766185374525,0.06043976,126.66,126.64,0.0545128]
[1766185376432,0.00043976,126.66,126.64,0.0545128]
[1766185380225,6.67512665,126.73,126.64,0.0545128]
[1766185380437,1.08451426,126.73,126.63,9.85377307]
[1766185380733,5.41,126.74,126.64,9.85377307]
[1766185380929,5.41,126.7,126.62,9.85377307]
[1766185381237,5.41,126.7,126.57,34.61976419]
[1766185381238,5.41,126.65,126.57,34.61976419]
[1766185381437,5.41,126.65,126.54,16.33399616]
[1766185381438,5.41,126.65,126.6,0.0592608]
[1766185381630,0.00062658,126.62,126.55,9.85377307]
[1766185381833,5.59061239,126.69,126.6,9.85377307]
[1766185382131,5.41,126.72,126.6,56.51377307]
[1766185382337,36.54,126.73,126.62,9.85377307]
[1766185382535,121.56131239,126.71,126.62,9.85377307]